{"text_format":"1","workbook":"xlsx","n_sheets":3,"sheets":["EXC","EXC zf","LEDEN"],"not_rendered":{"charts":0,"images":0,"macros":1,"external_links":1,"defined_names":6,"comments":0,"pivot_tables":0},"unopened":[],"bounds":{"document_bytes":16777216,"sheet_cells":100000,"rows_first":2000,"rows_last":500,"rows_between":2000,"halvings":0,"cell_chars":16384,"cell_head_chars":4096},"cells_cut":0,"cells_raw":0,"read":"whole","date_system":"1900"}

{"sheet":"EXC","index":0,"n_rows":49,"n_cols":32,"rows_kept":49,"cut":false,"hidden":false,"merged":[[48,3,48,9],[48,15,48,20],[45,1,45,10],[45,18,45,19],[42,2,42,10],[42,18,42,19],[43,2,43,10],[43,18,43,19],[44,2,44,10],[44,18,44,19],[40,2,40,10],[40,11,40,12],[41,2,41,10],[41,18,41,19],[33,2,33,10],[33,11,33,12],[34,2,34,10],[34,18,34,19],[35,2,35,10],[35,18,35,19],[36,2,36,10],[36,18,36,19],[37,2,37,10],[37,18,37,19],[38,1,38,10],[38,18,38,19],[29,2,29,10],[29,18,29,19],[30,2,30,10],[30,18,30,19],[31,1,31,10],[31,18,31,19],[26,2,26,10],[26,11,26,12],[27,2,27,10],[27,18,27,19],[28,2,28,10],[28,18,28,19],[22,2,22,10],[22,18,22,19],[23,2,23,10],[23,18,23,19],[24,1,24,10],[24,18,24,19],[19,2,19,10],[19,11,19,12],[20,2,20,10],[20,18,20,19],[21,2,21,10],[21,18,21,19],[15,2,15,10],[15,18,15,19],[16,2,16,10],[16,18,16,19],[17,1,17,10],[17,18,17,19],[12,2,12,10],[12,11,12,12],[13,2,13,10],[13,18,13,19],[14,2,14,10],[14,18,14,19],[5,0,5,20],[7,18,7,19],[8,1,8,2],[8,18,8,19],[10,2,10,10],[10,11,10,12],[10,18,10,19]]}
[]
["K O N I N K L I J K E   B E L G I S C H E    B I L J A R T B O N D ",null,null,null,null,null,null,null,null,null,null,null,"-","F E D E R A T I O N  R O Y A L E   B E L G E  DE  B I L L A R D "]
[null,null,null,null,"VZW - Zetel -  \" Café Sport \" - Martelarenplein, 13  -  3000 Leuven"]
[null,null,null,"GEWEST  BEIDE  VLAANDEREN"]
[null,null,null,null,null,null,null,null,null,null,"2018 - 2019"]
["UITSLAG GEWESTVOORRONDE   :  EXC  KLASSE   DRIEBANDEN  MB"]
[]
[null,"Inrichting : K.BC ONS HUIS ",null,null,null,null,null,null,null,null,null,null,null,null,null,null,"C","MIN","MAX"]
[null,"datum  : ",null,"za, 2 en zondag 3 februari 2019",null,null,null,null,null,null,null,null,null,null,42,null,null,0.76500000000000001,0.95]
[null,null,null,null,null,null,null,null,null,null,null,null,null,null,null,null,null,null,null,null,null,null,null,null,null,null,null,null,null,"  "]
[null,"NATID","NAAM ",null,null,null,null,null,null,null,null,"CLUB",null,"WEDP","BP","Beurten","GEM 2,30","HR","OPM",null,"Pl",null,null,null,"rooster4","rooster 5","rooster 6","rooster7"]
[]
[null,4361,{"$f":"VLOOKUP(B13,LEDEN!A:B,2,FALSE)","v":"MANGELINCKX Nico"},null,null,null,null,null,null,null,null,{"$f":"VLOOKUP(B13,LEDEN!A:C,3,FALSE)","v":"KOH"},null,null,null,null,null,null,null,null,null,null,null,null,null,null,null,null," "]
[null,null,{"$f":"VLOOKUP(B14,LEDEN!A:B,2,FALSE)","v":{"$error":"#N/A"}},null,null,null,null,null,null,null,null,null,null,null,null,null,{"$f":"IF(P14=0,\" \",TRUNC(O14/P14,2))","v":" "},null,{"$f":"IF(O14=0,\"\",IF(Q14>=X14,\"PR\",IF(Q14<W14,\"OG\",\"MG\")))","v":""},null,null,null,0.76500000000000001,0.94899999999999995,"a1","a1","a1","a1",null,"  "]
[null,null,{"$f":"VLOOKUP(B15,LEDEN!A:B,2,FALSE)","v":{"$error":"#N/A"}},null,null,null,null,null,null,null,null,null,null,null,null,null,{"$f":"IF(P15=0,\" \",TRUNC(O15/P15,2))","v":" "},null,{"$f":"IF(O15=0,\"\",IF(Q15>=X15,\"PR\",IF(Q15<W15,\"OG\",\"MG\")))","v":""},null,null,null,0.76500000000000001,0.94899999999999995,"a2","a2","a6","a4"]
[null,null,{"$f":"VLOOKUP(B16,LEDEN!A:B,2,FALSE)","v":{"$error":"#N/A"}},null,null,null,null,null,null,null,null,null,null,null,null,null," ",null,"",null,null,null,0.76500000000000001,0.94899999999999995,null,"a5","a3","a7",null,null,null," "]
[null,null,{"$f":"VLOOKUP(B17,LEDEN!A:B,2,FALSE)","v":{"$error":"#N/A"}},null,null,null,null,null,null,null,null,null,null,null,null,null," ",null,"",null,null,null,0.76500000000000001,0.94899999999999995,null,"a3","a4","a5"]
[null,"EINDRESULTAAT",null,null,null,null,null,null,null,null,null,null,null,{"$f":"SUM(N14:N17)","v":0},{"$f":"SUM(O14:O17)","v":0},{"$f":"SUM(P14:P17)","v":0},{"$f":"IF(P18=0,\" \",TRUNC(O18/P18,2))","v":" "},{"$f":"MAX(R14:R17)","v":0},{"$f":"IF(O18=0,\"\",IF(Q18>=X18,\"PR\",IF(Q18<W18,\"OG\",\"MG\")))","v":""},null,null,null,0.76500000000000001,0.94899999999999995,null,"a4","a5","a6"]
[]
[null,4363,{"$f":"VLOOKUP(B20,LEDEN!A:B,2,FALSE)","v":"PRIEUS Andy"},null,null,null,null,null,null,null,null,{"$f":"VLOOKUP(B20,LEDEN!A:C,3,FALSE)","v":"K.BR"},null,null,null,null,null,null,null,null,null,null,null,null,"a2","a2","a2","a2"]
[null,4557,{"$f":"VLOOKUP(B21,LEDEN!A:B,2,FALSE)","v":"SERWEYTENS Lieven"},null,null,null,null,null,null,null,null,null,null,null,null,null,{"$f":"IF(P21=0,\" \",TRUNC(O21/P21,2))","v":" "},null,{"$f":"IF(O21=0,\"\",IF(Q21>=X21,\"PR\",IF(Q21<W21,\"OG\",\"MG\")))","v":""},null,null,null,0.76500000000000001,0.94899999999999995,"a1","a1","a6","a5"]
[null,null,{"$f":"VLOOKUP(B22,LEDEN!A:B,2,FALSE)","v":{"$error":"#N/A"}},null,null,null,null,null,null,null,null,null,null,null,null,null,{"$f":"IF(P22=0,\" \",TRUNC(O22/P22,2))","v":" "},null,{"$f":"IF(O22=0,\"\",IF(Q22>=X22,\"PR\",IF(Q22<W22,\"OG\",\"MG\")))","v":""},null,null,null,0.76500000000000001,0.94899999999999995,null,"a4","a4","a7"]
[null,null,{"$f":"VLOOKUP(B23,LEDEN!A:B,2,FALSE)","v":{"$error":"#N/A"}},null,null,null,null,null,null,null,null,null,null,null,null,null," ",null,"",null,null,null,0.76500000000000001,0.94899999999999995,null,"a5","a5","a4"]
[null,null,{"$f":"VLOOKUP(B24,LEDEN!A:B,2,FALSE)","v":{"$error":"#N/A"}},null,null,null,null,null,null,null,null,null,null,null,null,null," ",null,"",null,null,null,0.76500000000000001,0.94899999999999995,null,"a3","a3","a6"]
[null,"EINDRESULTAAT",null,null,null,null,null,null,null,null,null,null,null,{"$f":"SUM(N21:N24)","v":0},{"$f":"SUM(O21:O24)","v":0},{"$f":"SUM(P21:P24)","v":0},{"$f":"IF(P25=0,\" \",TRUNC(O25/P25,2))","v":" "},{"$f":"MAX(R21:R24)","v":0},{"$f":"IF(O25=0,\"\",IF(Q25>=X25,\"PR\",IF(Q25<W25,\"OG\",\"MG\")))","v":""},null,null,null,0.76500000000000001,0.94899999999999995]
[]
[null,4557,{"$f":"VLOOKUP(B27,LEDEN!A:B,2,FALSE)","v":"SERWEYTENS Lieven"},null,null,null,null,null,null,null,null,{"$f":"VLOOKUP(B27,LEDEN!A:C,3,FALSE)","v":"K.BR"},null,null,null,null,null,null,null,null,null,null,null,null,"a3","a3","a3","a3"]
[null,4363,{"$f":"VLOOKUP(B28,LEDEN!A:B,2,FALSE)","v":"PRIEUS Andy"},null,null,null,null,null,null,null,null,null,null,null,null,null,{"$f":"IF(P28=0,\" \",TRUNC(O28/P28,2))","v":" "},null,{"$f":"IF(O28=0,\"\",IF(Q28>=X28,\"PR\",IF(Q28<W28,\"OG\",\"MG\")))","v":""},null,null,null,0.76500000000000001,0.94899999999999995,"a4","a4","a5","a4"]
[null,null,{"$f":"VLOOKUP(B29,LEDEN!A:B,2,FALSE)","v":{"$error":"#N/A"}},null,null,null,null,null,null,null,null,null,null,null,null,null,{"$f":"IF(P29=0,\" \",TRUNC(O29/P29,2))","v":" "},null,{"$f":"IF(O29=0,\"\",IF(Q29>=X29,\"PR\",IF(Q29<W29,\"OG\",\"MG\")))","v":""},null,null,null,0.76500000000000001,0.94899999999999995,null,"a5","a1","a6"]
[null,null,{"$f":"VLOOKUP(B30,LEDEN!A:B,2,FALSE)","v":{"$error":"#N/A"}},null,null,null,null,null,null,null,null,null,null,null,null,null," ",null,"",null,null,null,0.76500000000000001,0.94899999999999995,null,"a1","a6","a7"]
[null,null,{"$f":"VLOOKUP(B31,LEDEN!A:B,2,FALSE)","v":{"$error":"#N/A"}},null,null,null,null,null,null,null,null,null,null,null,null,null," ",null,"",null,null,null,0.76500000000000001,0.94899999999999995,null,"a2","a2","a5"]
[null,"EINDRESULTAAT",null,null,null,null,null,null,null,null,null,null,null,{"$f":"SUM(N28:N31)","v":0},{"$f":"SUM(O28:O31)","v":0},{"$f":"SUM(P28:P31)","v":0},{"$f":"IF(P32=0,\" \",TRUNC(O32/P32,2))","v":" "},{"$f":"MAX(R28:R31)","v":0},{"$f":"IF(O32=0,\"\",IF(Q32>=X32,\"PR\",IF(Q32<W32,\"OG\",\"MG\")))","v":""},null,null,null,0.76500000000000001,0.94899999999999995]
[]
[null,1329,{"$f":"VLOOKUP(B34,LEDEN!A:B,2,FALSE)","v":"COENEN Philip"},null,null,null,null,null,null,null,null,{"$f":"VLOOKUP(B34,LEDEN!A:C,3,FALSE)","v":"KKBC"},null,null,null,null,null,null,null,null,null,null,null,null,"a4","a4","a4","a4"]
[null,4931,{"$f":"VLOOKUP(B35,LEDEN!A:B,2,FALSE)","v":"VAN HOYLANDT ROGER"},null,null,null,null,null,null,null,null,null,null,null,null,null,{"$f":"IF(P35=0,\" \",TRUNC(O35/P35,2))","v":" "},null,{"$f":"IF(O35=0,\"\",IF(Q35>=X35,\"PR\",IF(Q35<W35,\"OG\",\"MG\")))","v":""},null,null,null,0.76500000000000001,0.94899999999999995,"a3","a3","a5","a1"]
[null,null,{"$f":"VLOOKUP(B36,LEDEN!A:B,2,FALSE)","v":{"$error":"#N/A"}},null,null,null,null,null,null,null,null,null,null,null,null,null,{"$f":"IF(P36=0,\" \",TRUNC(O36/P36,2))","v":" "},null,{"$f":"IF(O36=0,\"\",IF(Q36>=X36,\"PR\",IF(Q36<W36,\"OG\",\"MG\")))","v":""},null,null,null,0.76500000000000001,0.94899999999999995,null,"a2","a2","a3"]
[null,null,{"$f":"VLOOKUP(B37,LEDEN!A:B,2,FALSE)","v":{"$error":"#N/A"}},null,null,null,null,null,null,null,null,null,null,null,null,null," ",null,"",null,null,null,0.76500000000000001,0.94899999999999995,null,"a5","a1","a2"]
[null,null,{"$f":"VLOOKUP(B38,LEDEN!A:B,2,FALSE)","v":{"$error":"#N/A"}},null,null,null,null,null,null,null,null,null,null,null,null,null," ",null,"",null,null,null,0.76500000000000001,0.94899999999999995,null,"a1","a6","a6",null," "]
[null,"EINDRESULTAAT",null,null,null,null,null,null,null,null,null,null,null,{"$f":"SUM(N35:N38)","v":0},{"$f":"SUM(O35:O38)","v":0},{"$f":"SUM(P35:P38)","v":0},{"$f":"IF(P39=0,\" \",TRUNC(O39/P39,2))","v":" "},{"$f":"MAX(R35:R38)","v":0},{"$f":"IF(O39=0,\"\",IF(Q39>=X39,\"PR\",IF(Q39<W39,\"OG\",\"MG\")))","v":""}]
[]
[null,4931,{"$f":"VLOOKUP(B41,LEDEN!A:B,2,FALSE)","v":"VAN HOYLANDT ROGER"},null,null,null,null,null,null,null,null,{"$f":"VLOOKUP(B41,LEDEN!A:C,3,FALSE)","v":"QU"}]
[null,1329,{"$f":"VLOOKUP(B42,LEDEN!A:B,2,FALSE)","v":"COENEN Philip"},null,null,null,null,null,null,null,null,null,null,null,null,null,{"$f":"IF(P42=0,\" \",TRUNC(O42/P42,2))","v":" "},null,{"$f":"IF(O42=0,\"\",IF(Q42>=X42,\"PR\",IF(Q42<W42,\"OG\",\"MG\")))","v":""}]
[null,null,{"$f":"VLOOKUP(B43,LEDEN!A:B,2,FALSE)","v":{"$error":"#N/A"}},null,null,null,null,null,null,null,null,null,null,null,null,null,{"$f":"IF(P43=0,\" \",TRUNC(O43/P43,2))","v":" "},null,{"$f":"IF(O43=0,\"\",IF(Q43>=X43,\"PR\",IF(Q43<W43,\"OG\",\"MG\")))","v":""}]
[null,null,{"$f":"VLOOKUP(B44,LEDEN!A:B,2,FALSE)","v":{"$error":"#N/A"}},null,null,null,null,null,null,null,null,null,null,null,null,null," ",null,""]
[null,null,{"$f":"VLOOKUP(B45,LEDEN!A:B,2,FALSE)","v":{"$error":"#N/A"}},null,null,null,null,null,null,null,null,null,null,null,null,null," ",null,""]
[null,"EINDRESULTAAT",null,null,null,null,null,null,null,null,null,null,null,{"$f":"SUM(N42:N45)","v":0},{"$f":"SUM(O42:O45)","v":0},{"$f":"SUM(P42:P45)","v":0},{"$f":"IF(P46=0,\" \",TRUNC(O46/P46,2))","v":" "},{"$f":"MAX(R42:R45)","v":0},{"$f":"IF(O46=0,\"\",IF(Q46>=X46,\"PR\",IF(Q46<W46,\"OG\",\"MG\")))","v":""}]
[]
[]
[null,null,null,"2019-02-03",null,null,null,null,null,null,null,null,null,null,null,"Albert Verbeken"]

{"sheet":"EXC zf","index":1,"n_rows":49,"n_cols":32,"rows_kept":49,"cut":false,"hidden":false,"merged":[[48,3,48,9],[48,15,48,20],[43,2,43,10],[43,18,43,19],[44,2,44,10],[44,18,44,19],[45,1,45,10],[45,18,45,19],[40,2,40,10],[40,11,40,12],[41,2,41,10],[41,18,41,19],[42,2,42,10],[42,18,42,19],[36,2,36,10],[36,18,36,19],[37,2,37,10],[37,18,37,19],[38,1,38,10],[38,18,38,19],[33,2,33,10],[33,11,33,12],[34,2,34,10],[34,18,34,19],[35,2,35,10],[35,18,35,19],[29,2,29,10],[29,18,29,19],[30,2,30,10],[30,18,30,19],[31,1,31,10],[31,18,31,19],[26,2,26,10],[26,11,26,12],[27,2,27,10],[27,18,27,19],[28,2,28,10],[28,18,28,19],[22,2,22,10],[22,18,22,19],[23,2,23,10],[23,18,23,19],[24,1,24,10],[24,18,24,19],[19,2,19,10],[19,11,19,12],[20,2,20,10],[20,18,20,19],[21,2,21,10],[21,18,21,19],[15,2,15,10],[15,18,15,19],[16,2,16,10],[16,18,16,19],[17,1,17,10],[17,18,17,19],[12,2,12,10],[12,11,12,12],[13,2,13,10],[13,18,13,19],[14,2,14,10],[14,18,14,19],[5,0,5,20],[7,18,7,19],[8,1,8,2],[8,18,8,19],[10,2,10,10],[10,11,10,12],[10,18,10,19]]}
[]
["K O N I N K L I J K E   B E L G I S C H E    B I L J A R T B O N D ",null,null,null,null,null,null,null,null,null,null,null,"-","F E D E R A T I O N  R O Y A L E   B E L G E  DE  B I L L A R D "]
[null,null,null,null,"VZW - Zetel -  \" Café Sport \" - Martelarenplein, 13  -  3000 Leuven"]
[null,null,null,"GEWEST  BEIDE  VLAANDEREN"]
[null,null,null,null,null,null,null,null,null,null,"2018 - 2019"]
["UITSLAG GEWESTVOORRONDE   :  EXC  KLASSE   DRIEBANDEN  MB"]
[]
[null,"Inrichting : K.BC ONS HUIS ",null,null,null,null,null,null,null,null,null,null,null,null,null,null,"C","MIN","MAX"]
[null,"datum  : ",null,"za, 2 en zondag 3 februari 2019",null,null,null,null,null,null,null,null,null,null,42,null,null,0.76500000000000001,0.94899999999999995]
[null,null,null,null,null,null,null,null,null,null,null,null,null,null,null,null,null,null,null,null,null,null,null,null,null,null,null,null,null,"  "]
[null,"NATID","NAAM ",null,null,null,null,null,null,null,null,"CLUB",null,"WEDP","BP","Beurten","GEM 2,30","HR","OPM",null,"Pl",null,null,null,"rooster4","rooster 5","rooster 6","rooster7"]
[]
[null,4361,{"$f":"VLOOKUP(B13,LEDEN!A:B,2,FALSE)","v":"MANGELINCKX Nico"},null,null,null,null,null,null,null,null,{"$f":"VLOOKUP(B13,LEDEN!A:C,3,FALSE)","v":"KOH"},null,null,null,null,null,null,null,null,null,null,null,null,null,null,null,null," "]
[null,4931,{"$f":"VLOOKUP(B14,LEDEN!A:B,2,FALSE)","v":"VAN HOYLANDT ROGER"},null,null,null,null,null,null,null,null,null,null,0,35,45,{"$f":"IF(P14=0,\" \",TRUNC(O14/P14,3))","v":0.77700000000000002},4,{"$f":"IF(O14=0,\"\",IF(Q14>X14,\"PR\",IF(Q14<W14,\"OG\",\"MG\")))","v":"MG"},null,null,null,0.76500000000000001,0.94899999999999995,"a1","a1","a1","a1",null,"  "]
[null,4363,{"$f":"VLOOKUP(B15,LEDEN!A:B,2,FALSE)","v":"PRIEUS Andy"},null,null,null,null,null,null,null,null,null,null,0,36,56,{"$f":"IF(P15=0,\" \",TRUNC(O15/P15,3))","v":0.64200000000000002},8,{"$f":"IF(O15=0,\"\",IF(Q15>X15,\"PR\",IF(Q15<W15,\"OG\",\"MG\")))","v":"OG"},null,null,null,0.76500000000000001,0.94899999999999995,"a2","a2","a6","a4"]
[null,1329,{"$f":"VLOOKUP(B16,LEDEN!A:B,2,FALSE)","v":"COENEN Philip"},null,null,null,null,null,null,null,null,null,null,0,27,36,{"$f":"IF(P16=0,\" \",TRUNC(O16/P16,3))","v":0.75},4,"OG",null,null,null,0.76500000000000001,0.94899999999999995,null,"a5","a3","a7",null,null,null," "]
[null,4557,{"$f":"VLOOKUP(B17,LEDEN!A:B,2,FALSE)","v":"SERWEYTENS Lieven"},null,null,null,null,null,null,null,null,null,null,2,42,74,{"$f":"IF(P17=0,\" \",TRUNC(O17/P17,3))","v":0.56699999999999995},3,"OG",null,null,null,0.76500000000000001,0.94899999999999995,null,"a3","a4","a5"]
[null,"EINDRESULTAAT",null,null,null,null,null,null,null,null,null,null,null,{"$f":"SUM(N14:N17)","v":2},{"$f":"SUM(O14:O17)","v":140},211,{"$f":"O18/P18","v":0.6635071090047393},8,"OG",null,3,null,0.76500000000000001,0.94899999999999995,null,"a4","a5","a6"]
[]
[null,4363,{"$f":"VLOOKUP(B20,LEDEN!A:B,2,FALSE)","v":"PRIEUS Andy"},null,null,null,null,null,null,null,null,{"$f":"VLOOKUP(B20,LEDEN!A:C,3,FALSE)","v":"K.BR"},null,null,null,null,null,null,null,null,null,null,null,null,"a2","a2","a2","a2"]
[null,4557,{"$f":"VLOOKUP(B21,LEDEN!A:B,2,FALSE)","v":"SERWEYTENS Lieven"},null,null,null,null,null,null,null,null,null,null,2,42,63,{"$f":"IF(P21=0,\" \",TRUNC(O21/P21,3))","v":0.66600000000000004},5,{"$f":"IF(O21=0,\"\",IF(Q21>X21,\"PR\",IF(Q21<W21,\"OG\",\"MG\")))","v":"OG"},null,null,null,0.76500000000000001,0.94899999999999995,"a1","a1","a6","a5"]
[null,4361,{"$f":"VLOOKUP(B22,LEDEN!A:B,2,FALSE)","v":"MANGELINCKX Nico"},null,null,null,null,null,null,null,null,null,null,2,42,56,0.75,6,"OG",null,null,null,0.76500000000000001,0.94899999999999995,null,"a4","a4","a7"]
[null,4931,{"$f":"VLOOKUP(B23,LEDEN!A:B,2,FALSE)","v":"VAN HOYLANDT ROGER"},null,null,null,null,null,null,null,null,null,null,2,42,62,0.67700000000000005,3,"OG",null,null,null,0.76500000000000001,0.94899999999999995,null,"a5","a5","a4"]
[null,1329,{"$f":"VLOOKUP(B24,LEDEN!A:B,2,FALSE)","v":"COENEN Philip"},null,null,null,null,null,null,null,null,null,null,0,38,50,0.76,6,"OG",null,null,null,0.76500000000000001,0.94899999999999995,null,"a3","a3","a6"]
[null,"EINDRESULTAAT",null,null,null,null,null,null,null,null,null,null,null,{"$f":"SUM(N21:N24)","v":6},{"$f":"SUM(O21:O24)","v":164},{"$f":"SUM(P21:P24)","v":231},{"$f":"O25/P25","v":0.70995670995671001},6,"OG",null,2,null,0.76500000000000001,0.94899999999999995]
[]
[null,4557,{"$f":"VLOOKUP(B27,LEDEN!A:B,2,FALSE)","v":"SERWEYTENS Lieven"},null,null,null,null,null,null,null,null,{"$f":"VLOOKUP(B27,LEDEN!A:C,3,FALSE)","v":"K.BR"},null,null,null,null,null,null,null,null,null,null,null,null,"a3","a3","a3","a3"]
[null,4363,{"$f":"VLOOKUP(B28,LEDEN!A:B,2,FALSE)","v":"PRIEUS Andy"},null,null,null,null,null,null,null,null,null,null,0,41,63,{"$f":"IF(P28=0,\" \",TRUNC(O28/P28,3))","v":0.65},4,{"$f":"IF(O28=0,\"\",IF(Q28>X28,\"PR\",IF(Q28<W28,\"OG\",\"MG\")))","v":"OG"},null,null,null,0.76500000000000001,0.94899999999999995,"a4","a4","a5","a4"]
[null,1329,{"$f":"VLOOKUP(B29,LEDEN!A:B,2,FALSE)","v":"COENEN Philip"},null,null,null,null,null,null,null,null,null,null,0,31,51,0.60699999999999998,6,"OG",null,null,null,0.76500000000000001,0.94899999999999995,null,"a5","a1","a6"]
[null,4931,{"$f":"VLOOKUP(B30,LEDEN!A:B,2,FALSE)","v":"VAN HOYLANDT ROGER"},null,null,null,null,null,null,null,null,null,null,2,42,55,0.76300000000000001,4,"OG",null,null,null,0.76500000000000001,0.94899999999999995,null,"a1","a6","a7"]
[null,4361,{"$f":"VLOOKUP(B31,LEDEN!A:B,2,FALSE)","v":"MANGELINCKX Nico"},null,null,null,null,null,null,null,null,null,null,0,38,74,0.51300000000000001,6,"OG",null,null,null,0.76500000000000001,0.94899999999999995,null,"a2","a2","a5"]
[null,"EINDRESULTAAT",null,null,null,null,null,null,null,null,null,null,null,{"$f":"SUM(N28:N31)","v":2},{"$f":"SUM(O28:O31)","v":152},{"$f":"SUM(P28:P31)","v":243},{"$f":"O32/P32","v":0.62551440329218111},6,"OG",null,4,null,0.76500000000000001,0.94899999999999995]
[]
[null,1329,{"$f":"VLOOKUP(B34,LEDEN!A:B,2,FALSE)","v":"COENEN Philip"},null,null,null,null,null,null,null,null,{"$f":"VLOOKUP(B34,LEDEN!A:C,3,FALSE)","v":"KKBC"},null,null,null,null,null,null,null,null,null,null,null,null,"a4","a4","a4","a4"]
[null,4931,{"$f":"VLOOKUP(B35,LEDEN!A:B,2,FALSE)","v":"VAN HOYLANDT ROGER"},null,null,null,null,null,null,null,null,null,null,2,42,68,{"$f":"IF(P35=0,\" \",TRUNC(O35/P35,3))","v":0.61699999999999999},4,{"$f":"IF(O35=0,\"\",IF(Q35>X35,\"PR\",IF(Q35<W35,\"OG\",\"MG\")))","v":"OG"},null,null,null,0.76500000000000001,0.94899999999999995,"a3","a3","a5","a1"]
[null,4557,{"$f":"VLOOKUP(B36,LEDEN!A:B,2,FALSE)","v":"SERWEYTENS Lieven"},null,null,null,null,null,null,null,null,null,null,2,42,51,0.82299999999999995,6,"MG",null,null,null,0.76500000000000001,0.94899999999999995,null,"a2","a2","a3"]
[null,4361,{"$f":"VLOOKUP(B37,LEDEN!A:B,2,FALSE)","v":"MANGELINCKX Nico"},null,null,null,null,null,null,null,null,null,null,2,42,36,1.1659999999999999,7,"PR",null,null,null,0.76500000000000001,0.94899999999999995,null,"a5","a1","a2"]
[null,4363,{"$f":"VLOOKUP(B38,LEDEN!A:B,2,FALSE)","v":"PRIEUS Andy"},null,null,null,null,null,null,null,null,null,null,2,42,50,0.84,6,"MG",null,null,null,0.76500000000000001,0.94899999999999995,null,"a1","a6","a6",null," "]
[null,"EINDRESULTAAT",null,null,null,null,null,null,null,null,null,null,null,{"$f":"SUM(N35:N38)","v":8},{"$f":"SUM(O35:O38)","v":168},{"$f":"SUM(P35:P38)","v":205},{"$f":"O39/P39","v":0.81951219512195117},7,"MG",null,1,null,0.76500000000000001,0.94899999999999995]
[]
[null,4931,{"$f":"VLOOKUP(B41,LEDEN!A:B,2,FALSE)","v":"VAN HOYLANDT ROGER"},null,null,null,null,null,null,null,null,{"$f":"VLOOKUP(B41,LEDEN!A:C,3,FALSE)","v":"QU"}]
[null,1329,{"$f":"VLOOKUP(B42,LEDEN!A:B,2,FALSE)","v":"COENEN Philip"},null,null,null,null,null,null,null,null,null,null,0,31,68,{"$f":"IF(P42=0,\" \",TRUNC(O42/P42,3))","v":0.45500000000000002},3,{"$f":"IF(O42=0,\"\",IF(Q42>X42,\"PR\",IF(Q42<W42,\"OG\",\"MG\")))","v":"OG"},null,null,null,0.76500000000000001,0.94899999999999995]
[null,4361,{"$f":"VLOOKUP(B43,LEDEN!A:B,2,FALSE)","v":"MANGELINCKX Nico"},null,null,null,null,null,null,null,null,null,null,2,42,45,0.93300000000000005,8,{"$f":"IF(O43=0,\"\",IF(Q43>X43,\"PR\",IF(Q43<W43,\"OG\",\"MG\")))","v":"MG"},null,null,null,0.76500000000000001,0.94899999999999995]
[null,4557,{"$f":"VLOOKUP(B44,LEDEN!A:B,2,FALSE)","v":"SERWEYTENS Lieven"},null,null,null,null,null,null,null,null,null,null,0,27,55,0.49,3,"OG",null,null,null,0.76500000000000001,0.94899999999999995]
[null,4363,{"$f":"VLOOKUP(B45,LEDEN!A:B,2,FALSE)","v":"PRIEUS Andy"},null,null,null,null,null,null,null,null,null,null,0,35,62,0.56399999999999995,3,"OG",null,null,null,0.76500000000000001,0.94899999999999995]
[null,"EINDRESULTAAT",null,null,null,null,null,null,null,null,null,null,null,{"$f":"SUM(N42:N45)","v":2},{"$f":"SUM(O42:O45)","v":135},{"$f":"SUM(P42:P45)","v":230},{"$f":"O46/P46","v":0.58695652173913049},8,"OG",null,5,null,0.76500000000000001,0.94899999999999995]
[]
[]
[null,null,null,"2019-02-03",null,null,null,null,null,null,null,null,null,null,null,"Albert Verbeken"]

{"sheet":"LEDEN","index":2,"n_rows":803,"n_cols":6,"rows_kept":803,"cut":false,"hidden":false,"merged":[]}
[null,null,null,"NS"]
[]
[8758,"DUYM Ignace","ACG"]
[4505,"BRACKE Peter","ACG"]
[2314,"SONCK ROBBY","ACG"]
[6927,"DUJARDIN Luc","ACG"]
[4432,"BAETE Jean-Pierre","ACG"]
[9431,"JACQUEMYN Tony","KBCAW"]
[4496,"VAN HANEGEM Izaak","ACG"]
[6705,"BERNAERDT Roland","ACG"]
[4496,"VAN HANEGEM Izaak","ACG"]
[7125,"Nuytten Renold","ACG"]
[9821,"VAN DEN BOSSCHE Daniël","UN"]
[7302,"DE CRAECKER Werner","ACG"]
[9800,"DE CRAECKER Emma (jeugd)","ACG"]
[9826,"DE BIE Rudy","ACG"]
[4416,"VAN RIJSSELBERGHE Johan","ACG"]
[9261,"de MEULEMEESTER Cédric","ACG"]
[1036,"DEPOORTER MIEKE","ACG"]
[4845,"STEVENS PATRICK","KBCAW"]
[5587,"GERMONPRE Luc","ACG"]
[8671,"DE MUYNCK Jean-Pierre","ACG"]
[8672,"DEMOOR Danny","ACG"]
[6428,"MEULEMAN Rudy","ACG"]
[]
[null," "]
[4854,"ROSIER Peter","BCSK"]
[4895,"DE BLOCK Omer","BCSK"]
[6488,"DE WITTE Franky","BCSK"]
[6489,"DE WITTE Jeffrey","BCSK"]
[7812,"BOERJAN Pierre","BCSK"]
[8674,"VAN LEUVENHAGE Dylan","BCSK"]
[8900,"JANSSENS Dirk","BCSK"]
[1294,"BACKMAN Werner","BCSK"]
[8133,"VAN CRAENENBROECK Theo","BCSK"]
[4853,"NOPPE Robert","BCSK",null,null," "]
["6784B","VAN BIESEN Tom","BCSK"]
[9441,"ROSIER Nick","BCSK"]
[9442,"VERGULT François","BCSK"]
[4937,"LEEMANS Willy","KGV"]
[9276,"DE KORT Marc","BCSK"]
[4894,"DAELMAN Walther","BCSK"]
[8507,"TROONBEECKX Willy","BCSK"]
[8717,"VAN DEN EEDEN Kurt","K.SNBA"]
[8073,"DE WITTE Tamara","BCSK"]
[8385,"GODDAERT Johan","BCSK"]
[9955,"DE RUDDER David","BCSK"]
[9348,"WOUTERS Marc","BCSK"]
[8650,"DE BOEY Gijs","BCSK"]
[]
[8689,"DEWAELE Eddy","CBC-DLS"]
[8690,"JOYE Rik","CBC-DLS"]
[8704,"CALLENS Filip","CBC-DLS"]
[8691,"BRUNEEL Norbert ","CBC-DLS"]
[8649,"VAN DE VELDE Desire","CBC-DLS"]
[8658,"MONDELAERS Dries","CBC-DLS"]
[8652,"TANGHE Freddy","CBC-DLS"]
[]
[4192,"BEAUJEAN Karel","CM"]
[9059,"BERTEN Franky","CM"]
[5500,"ROELANTS Karel","CM"]
[4143,"VAN CRAEN Albert","CM"]
[6189,"VANDENABEELE Marc","CM"]
[7796,"DE LAET Cassy","CM"]
[7822,"SCHOUTETENS Marc","CM"]
[9512,"DE SCHILDER Leon","CM"]
[9513,"CARPAY Henri","CM"]
[4682,"SCHOUTETENS Pieter","CM"]
[]
[7465,"COUSSEMENT Wim","DK"]
[9413,"DANNEELS Laurent","DK"]
[5682,"DELANGHE Lievin","DK"]
[4188,"RONDELEZ Noel","DK"]
[4180,"CONSTANT Geert","DK"]
[8047,"DEVRIENDT Bart","DK"]
[]
[4763,"CASTELEYN Rik","DOS"]
[1061,"GELDHOF Frank","DOS"]
[4762,"CASTELEYN Henk","DOS"]
[4765,"DEBAES Peter","DOS"]
[4768,"DEDIER Georges","DOS"]
[8156,"DETOLLENAERE Jonny","DOS"]
[4776,"HOUTHAEVE Jean-Marie","DOS"]
[4778,"LEYN Philippe","DOS"]
[7697,"GHESQUIERE Jozef","DOS"]
[8090,"VANLAUWE Stephan","DOS"]
[4693,"MOSTREY Peter","DOS"]
[4733,"NUYTTENS Gino","DOS"]
[6720,"WILLE Etienne","DOS"]
[4738,"VANDENDRIESSCHE Philip","KKBC"]
[6094,"VANACKER Steven","DOS"]
[9461,"RONDELEZ Kenneth","DOS"]
[2299,"VANTHOURNOUT Michel","DOS"]
[1055,"BRUWIER Erwin","DOS"]
[8705,"STEVENS Ilse","DOS"]
[4774,"DUYCK Peter","DOS"]
[8697,"MELNYTSCHENKO Cédric","DOS"]
[4759,"WARLOP Luc","DOS"]
[1060,"Wittevrongel Dirk","DOS"]
[9018,"GHEVART Jean","DOS"]
[9957,"BRUWIER Ludwin","DOS"]
[9958,"DEBLAUWE Dimitri","DOS"]
[9766,"VANNESTE Philip","DOS"]
[9045,"WALLART Jean-Charles","DOS"]
[]
[4454,"DEPOORTER Reginald","GS"]
[4466,"TREMERIE Walter","GS"]
[4541,"DELLAERT Marc","GS"]
[4587,"VERSTRAETEN Frank","GS"]
[6701,"BROCHE Philippe","GS"]
[6703,"CLAUS Pascal","GS"]
[7203,"DELARUE Dirk","GS"]
[7498,"VAN DAM Jens","GS"]
[8163,"DE WEIRDT Jean-Marie","GS"]
[8654,"BAETSLE Peter","GS"]
[8890,"VAN HOLLE Jean-Pierre","GS"]
[4506,"BRACKE Tom","GS"]
[9419,"MOEYKENS Biacio","GS"]
[9959,"DE DEYNE Firmin","GS"]
[8655,"TOLLEBEKE Arthur","GS"," "]
[4394,"CREVE Camiel","GS"]
[]
[8918,"VANDENBERGHE Pascal ","K&V"]
[9428,"WIELFAERT Curt","K&V"]
[9429,"HERREMAN Luc","K&V"]
[9520,"VANDERLINDEN Aimé","K&V"]
[9960,"DE VOS Antoon","K&V"]
[9262,"CLAEYS Hubert","K&V"]
[9782,"D'HAEZE Adolf","K&V"]
[9781,"DOS SANTOS Jose","K&V"]
[9608,"VAN BREDA Mike ","K&V"]
[7461,"GRIMON Johan","K&V"]
[]
[2944,"t SEYEN Roland","K.BR"]
[4148,"DE CUYPER René","K.BR"]
[4150,"DEVROE Eddy","K.BR"]
[4156,"SEYS Norbert","K.BR"]
[4214,"DE BAERE Karel","K.BR"]
[4217,"DE GRAEVE David","K.BR"]
[4222,"DE QUEKER Guido","K.BR"]
[4223,"DRUWEL Francois","K.BR"]
[4224,"GUIDE Jean-Pierre","K.BR"]
[4241,"VANHECKE Rik","K.BR"]
[4242,"VERCRUYSSE Johan","K.BR"]
[4557,"SERWEYTENS Lieven","K.BR"]
[4779,"LEYS Bart","K.BR"]
[5186,"DEFRUYT Dirk","K.BR"]
[5190,"SAVER André","K.BR"]
[5408,"VANRAPENBUSCH Franky","K.BR"]
[5685,"BOECKAERT Eric","K.BR"]
[5689,"SAVER Koen","K.BR"]
[6081,"QUITTELIER Stephane","K.BR"]
[7795,"HACKE Jean-Marie","K.BR"]
[7797,"BEIRENS Marc","K.BR"]
[8162,"SEYS Herbert","K.BR"]
[8454,"STUYVAERT Marijn","K.BR"]
[8669,"DE CLERCK Jean","K.BR"]
[8670,"SCHOE Henk","K.BR"]
[4185,"DEPOORTER Daniël","K.BR"]
[9062,"DE BUSSCHER Walter","K.BR"]
[8921,"CHRISTIAENS Danny","K.BR"]
[7801,"EISCHEN Frédéric","K.BR"]
[4250,"COBBAERT  Thierry","K.BR"]
[9257,"MUS Hendrik","K.BR"]
[9258,"STEFFENS Alain","K.BR"]
[4267,"THOMAS Peter","K.BR"]
[4722,"BLAUWBLOMME Henk","K.BR"]
[7529,"VASSEUR Patrick","DOS"]
[9256,"DALLINGA Louis","K.BR"]
[8362,"DEKRAKER Jean-Paul","K.BR"]
[5691,"TORRES Manuel","K.BR"]
[4682,"SCHOUTETENS Pieter","K.BR"]
[7462,"CREYF Fernand","K.BR"]
[4071,"DE BAERE Eddy","K.BR"]
[6678,"DE CORTE Jan","K.Kn"]
[6399,"DELAERE Marc","K.Kn"]
[4644,"DUMON Dirk","K.BR"]
[6680,"FLAMEE Kurt","K.BR"]
[8881,"HERPOEL Rony","K.BR"]
[4187,"ROGIERS Marc","K.BR"]
[4184,"DEPOORTER Chris","K.BR"]
[5439,"DUCHEYNE Kenny","K.BR"]
[9279,"DALINGA Meerten","K.BR"]
[4233,"PIETERS Ronny","K.BR"]
[9778,"POPPE Rudy","K.BR"]
[4363,"PRIEUS Andy","K.BR"]
[4070,"DE BAERE Cindy","K.BR"]
[8677,"CAMPE Etienne","K.BR"]
["NS 18","VERSCHAEVE Edwin","K.BR"]
[8676,"NEUBOURG Freddy","K.BR"]
[]
[4422,"DE MEYER Rudi","K.EBC"]
[1022,"MENHEER Leslie","K.EBC"]
[4473,"DE BAETS Ronny","K.EBC"]
[4482,"STAELENS Freddy","K.EBC"]
[4538,"DE LOMBAERT Albert","K.EBC"]
[4539,"DE MIL Christiaan","K.EBC"]
[4544,"GEVAERT Michel","K.EBC"]
[4545,"GOETHALS Armand","K.EBC"]
[4558,"SIMOENS Wilfried","K.EBC"]
[4559,"STANDAERT Arthur","K.EBC"]
[4560,"STANDAERT Peter","K.EBC"]
[4561,"VAN DAMME Etienne","K.EBC"]
[4567,"VLERICK Raf","K.EBC"]
[5212,"STEVENS Martin","K.EBC"]
[5769,"HAERENS Raf","K.EBC"]
[9067,"De Letter Sandra","K.EBC"]
[6096,"VAN REETH Rudy","K.EBC"]
[6097,"VAN DE VOORDE Johan","K.EBC"]
[6709,"WELVAERT Yves","K.EBC"]
[7478,"BAUMGARTE Cees","K.EBC"]
[8659,"LAMPAERT Eddy","K.EBC"]
[9057,"BONTE William","K.EBC"]
[7036,"MISMAN Eddy","K.Br"]
[7474,"Geirnaert Marc","K.EBC"]
[7312,"Van Acker Johan","K.EBC"]
[6094,"Van Acker Steven","K.EBC"]
[5015,"Himschoot Daniel","K.EBC"]
[1046,"Bruggeman Franky ","K.EBC"]
[6690,"BAUWENS Etienne","K.EBC"]
[4395,"DE PAEPE Roland","K.EBC"]
[8656,"MELKEBEKE Julien","K.EBC"]
[4446,"Fourneau Alain","K.EBC"]
[4490,"VAN LANCKER Pierre","K.EBC"]
[9524,"CLAERHOUT Robin","K.EBC"]
[7479,"HONGENAERT Erwin","K.EBC"]
[9525,"DE JONGE Cor","K.EBC"]
[9267,"JANSSEN Willem","K.EBC"]
[6090,"BERGMANS Dion","KAS"]
[1071,"BILLIET Jelle","K.EBC"]
["6417B","BLOMME Jean-Thierry","K.EBC"]
[9807,"DE BRUYCKER Pierre","K.EBC"]
[4491,"VAN SCHUYLENBERGH Jean-Paul","K.EBC"]
[]
[9424,"VAN DEN  EEDE  Marc","K.EWH"]
[9966,"BRUGGEMAN Etienne"," K.EWH","NS"]
[7311,"BUZEYN Jean","K.Br","NS"]
[4425,"GEVAERT André","K.EWH"]
[8063,"COPPENS Christiaan","K.EWH"]
[8657,"HOLDERBEKE Alex","K.EWH"]
[4425,"GEVAERT André ","K.EWH"]
[9595,"VERBEURE Danny","K.EWH"]
[7806,"BAUTE Steven","K.EWH"]
[9593,"TRENSON Gabriël","K.EWH"]
[4446,"FOURNEAU Alain","K.EWH"]
[9592,"DE LOBEL Marc","K.EWH"]
[4472,"DE BAETS Danny","K.EWH","HNS"]
[]
[4435,"HERREMAN Roger","K.GHOK"]
[4551,"LEMAN Gwen","K.GHOK"]
[4775,"GOETHALS Didier","K.GHOK"]
[4789,"CAPPELLE Herwig","K.GHOK"]
[4790,"DE MOOR Frederik","K.GHOK"]
[4791,"DE MOOR Willy","K.GHOK"]
[4793,"DETAVERNIER Hendrik","K.GHOK"]
[7823,"JOYE Robert","K.GHOK"]
[8513,"DECOCK Johan","K.GHOK"]
[8702,"VAN DE VELDE August","K.GHOK"]
[4659,"BAS Jacques","K.GHOK"]
[4656,"POLLIE Luc","K.GHOK"]
[3807,"VERBRUGGHE Johan","K.GHOK"]
[9274,"VERBRUGGHE Philip","K.GHOK"]
[7689,"BOSSAERT Dirk","K.GHOK"]
[9143,"DENEUT Johan","K.GHOK"]
[8736,"VEYS Renzo","K.GHOK"]
[9440,"DECOCK Stephan","K.GHOK"]
[8688,"DECEUNINCK Kurt","K.GHOK"]
[9437,"DHAEYER Rémy","K.GHOK"]
[1056,"SANTY Eric","KKBC"]
[8088,"VERCAEMERE Jaak","K.GHOK"]
[1058,"VERMEERSCH Dave","KKBC"]
[1143,"LOUAGIE Bjorn","K.GHOK"]
[7821,"VROMANT Marc","K.GHOK"]
[5746,"NICHELSON Pascal","K.GHOK"]
[7814,"DEWILDE Johan","K.GHOK"]
[8873,"DEVOS Claude","K.GHOK"]
[9531,"ROELAND Juliaan","K.GHOK"]
[8282,"PATTYN Guy","K.GHOK"]
[9532,"VIENNE Isabelle","K.GHOK"]
[7499,"GRAYE André","K.GHOK"]
[7524,"SCHOKELE Ronny","K.GHOK"]
[4687,"VANHAESEBROEK Didier","K.GHOK"]
[9433,"LATRUWE Nicolas","K.GHOK"]
[9511,"HOUSSIN Mario","K.GHOK"]
[4435,"HERREMAN Roger","K.GHOK"]
[9783,"DEVOLDER Freddy","K.GHOK"]
[9764,"VERCAEMERE Philippe","K.GHOK"]
[9855,"CARDOEN Kurt","K.GHOK"]
[9765,"VERCAEMERE Bjorn","K.GHOK"]
[9785,"DE SMET Wim","K.GHOK"]
[9079,"HIMPE Jean","K.GHOK"]
[9502,"Himpe Jeremy  ","K.GHOK"]
[7458,"DUMON Eddy","K.GHOK"]
[9439,"VANDENBERGHE Rudy","K.GHOK"]
[9080,"VANKEIRSBILCK Alex","K.GHOK"]
[]
[7678,"DE VREEZE Patrick","K.KN"]
[5178,"FRANKEN Luc","K.KN"]
[7284,"LANDUYT Sacha","K.KN"]
[4522,"METTEPENNINGEN Julien","K.KN"]
[4114,"VAN KREIJ Jo","K.KN"]
[6806,"VANHAEREN Leon","K.KN"]
[8678,"GHAZAL Ahmad ","K.KN"]
[]
[]
[9421,"Caudron Danny","K. ME"]
[8410,"LIPPENS Tony","K.ME"]
[9420,"CAUDRON Bjorn","K.ME"]
[4415,"VANPETEGHEM Alex","K.ME"]
[4443,"VERBEKEN Albert","K.ME"]
[4629,"VERSNOYEN François","K.ME"]
[4643,"MESURE Freddy","K.ME"]
[6715,"BRUGGEMAN Roger","K.ME"]
[8664,"OOSTERLINCK Luc","K.ME"]
[8665,"VAN DELSEN Edgard","K.ME"]
[8666,"BRACKE André","K.ME"]
[8898,"RAES Freddy","K.ME"]
[9263,"DE  VOS  GUIDO","K&V"]
[9527,"BORGILIOEN  MARCEL","K.ME"]
[8663,"JANSSENS Roger","K.ME"]
[]
[4907,"CORNELISSEN Pierre","K.SNBA"]
[4913,"DE RUYTE Yvan","K.SNBA"]
[4916,"DE WITTE William","K.SNBA"]
[4922,"LAUREYS Wilfried","K.SNBA"]
[6743,"DE RUYTE Tom","K.SNBA"]
[7562,"THUY Marc","K.SNBA"]
[7923,"VAN DEN BERGHE Roland","K.SNBA"]
[8414,"MAES Lucien","K.SNBA"]
[8681,"VAN LEEUWEN A.E.M","K.SNBA"]
[8902,"SUY Luc","K.SNBA"]
[8903,"NEYTS Pierre","K.SNBA"]
[4952,"DE SAEGER Dany","QU"]
[9083,"VAN DEN BERGHE André","K.SNBA"]
[4920,"HEERWEGH Robert","K.SNBA"]
[8481,"VAVOURAIKIS  Emmanouil","K.SNBA"]
[9277,"BOLLAERT GUIDO","K.SNBA"]
[7704,"HEERWEGH ERIK","K.SNBA"]
[4859,"CHRISTIAENS Johan","K.SNBA"]
[8149,"D'HONDT Roland","K.SNBA"]
[4950,"DE CONINCK Achille","K.SNBA"]
[1067,"MAES Bart","K.SNBA"]
[8746,"PEERSMAN Luc","K.SNBA"]
[8904,"RAES Wim","K.SNBA"]
[8081,"SLEEBUS Eddy","K.SNBA"]
[9476,"VERHOFSTADT Eddy","K.SNBA"]
[9963,"ROLUS Bob","K.SNBA"]
[5732,"ILIANO Franz","K.SNBA"]
[6564,"MAES Rudy","K.SNBA"]
["NS9","VAN MEIR Frank","K.SNBA"]
["NS10","D'HAENS Peter","K.SNBA"]
["NS11","BORREMANS Raf","K.SNBA"]
["NS12","GOOSSENS Dave","K.SNBA"]
["NS13","VAN STEENACKER Thierry","K.SNBA"]
[]
[7804,"DE BREMAEKER Eric","K.STER"]
[8535,"DE WIN Guy","K.STER"]
[5198,"VAN LAETHEM Rudy","K.STER"]
[9221,"BOSTOEN Kris","K.STER"]
[7054,"LOOS Leo","K.STER"]
[7049,"DE TANT Freddy","K.STER"]
[4345,"PARDAENS Willy","K.STER"]
[4344,"DE WEVER Koen","K.STER"]
[4352,"WAUTERS Johnny","K.STER"]
[9515,"CEULEMANS Benny","K.STER"]
[9517,"GOORDEN Willy","K.STER"]
[4282,"COPPENS Sandro","K.STER"]
[7609,"COLLART Olivier","K.STER"]
[7236,"MARCHARIS Françis","K.STER"]
[9516,"DUJARDIN Geoffrey","K.STER"]
[8017,"VAN RIET Kris ","K.STER"]
[6454,"VERCAMMEN Alwin","K.STER"]
[4320,"VAN LANGENHOVE Alain","K.STER"]
[4324,"DE CONINCK Marc","K.STER"]
[4348,"VAN MUYLEM Norbert","K.STER"]
[9974,"DE FREYN Jasper","K.STER"]
[9063,"DE BECK Clery","UN"]
[6088,"SIROYT Davy","K.STER"]
[4341,"DE COSTER Luc","K.STER"]
[]
[4162,"CAPPELLE Eddy","K.ZE"]
[4167,"DECLERCK Gilbert","K.ZE"]
[4171,"FORREST Emiel","K.ZE"]
[4232,"BUYSSE Edgard","K.ZE"]
[9254,"DE PRINCE Luc","K.ZE"]
[9961,"VANDENBROELE Kurt","K.ZE","NS"]
[6078,"VANDEWIELE Eric","K.ZE"]
[]
[4402,"ROELS Roger","KAS"]
[4451,"DE BLEECKER Steven","KAS"]
[4524,"RODTS Piet","KAS"]
[4526,"VAN DE VELDE Marc","KAS"]
[7207,"FEYS Georges","KAS"]
[7209,"VAN WAEYENBERGHE Carlos","KAS"]
[7687,"PIETERS Lionel","KAS"]
[8895,"SANMODESTO José","KAS"]
[4530,"VERSPEELT Filip","KAS"]
[8070,"VAN KERCKHOVE Willem","KAS",null,"  "]
[8530,"DEMIRCIOGLU Fuat","KAS"]
[8068,"KAHRAMAN Murat","KAS"]
[5705,"LUTTENS Arnold","KAS"]
[4516,"FEYS Gunther","KAS"]
[9964,"DE MEY Ad","KAS"]
[9965,"SANMODESTO Nicolas","KAS"]
[7112,"DE BRUIN Richard","KAS"]
[4634,"DEVLIEGER David","KAS"]
[]
[9260,"VAN HEIRSEELE Roger","KBCAW"]
[8897,"BAELE Edmond","KBCAW"]
[8349,"CLAERHOUT Bernard","KBCAW"]
[8352,"COSYNS Marc","KBCAW"]
[6706,"DE FAUW Guy","KBCAW"]
[7475,"DE MOL Daniel","KBCAW"]
[6427,"GORLEER Omer","KBCAW"]
[7477,"VAN DE CASTEELE Henri","KBCAW"]
[7698,"VAN FLETEREN Piet","KBCAW"]
[9432,"VANAELST Paul","KBCAW"]
[9522,"LEEMAN Rudy","K&V"]
[4613,"VANDAELE Pierre","KBCAW"]
[6713,"VAN ACKER Johan","KBCAW"]
[7476,"DE COOMAN Marcel","KBCAW"]
[8165,"DE RUDDER  Willy","KBCAW"]
[9066,"WILLEMS  Raymond","KBCAW"]
[9426,"DE WISPELAERE  Walter","KBCAW"]
[4036,"STRYPENS Lucien","KBCAW"]
[4609,"VAN ACKER Jan","KBCAW"]
[6435,"BELAEY DANNY","KBCAW"]
[7045,"LAEREMANS Kenny","KBCAW"]
[]
[]
[]
[4865,"HAEGENS Willy","KGV"]
[4866,"MAES Georges","KGV"]
[4872,"VAN VOSSEL Danny","KGV"]
[5229,"VAN MELE Franky","KGV"]
[6117,"VAN VOSSELEN Christoph","KGV"]
[6712,"SEGERS Didier","KGV"]
[6784,"VAN BIESEN Tom","KGV"]
[8870,"VAN MEIRVENNE Nestor","KGV"]
[9082,"WAEM Kris","KGV"]
[1062,"DE WREEDE Marc","KGV"]
[9533,"WUYTACK Gunther","KGV"]
[5232,"CORNET Walther ","KGV"]
[9967,"VETS Sven","KGV","NS"]
[5230,"PAUWELS Paul","KGV"]
[6122,"DE MAEYER Joris","KGV"]
[]
[8125,"LANDRIEU Jan","KK"]
[7308,"CLAUS Gino","KK"]
[9529,"CALLAERT Alain","KK"]
[4725,"VANONACKER Patrick","KK"]
[4736,"VANCOILLIE Francky","KK"]
[4737,"VANGANSBEKE Luc","KK"]
[4798,"VERCOUILLIE Alexander","KK"]
[8089,"VERGHEYNST Albert","KK"]
[4799,"VERCOUILLIE José","KK"]
[5223,"DESCHEPPER Carl","KK"]
[6730,"DENOULET Johan","KK"]
[7540,"VANDAELE Eric","KK"]
[8425,"MILLET Michel","KK"]
[4036,"VANGANSBEKE Gerard","KK"]
[8714,"LOOSVELDT Frank","KK"]
[9078,"BEKAERT Bernhard","KK"]
[4680,"RAVESTYN Martin","KK"]
[6727,"DE RYNCK Ivan","KK"]
[4703,"BEGHIN Frédéric","KK"]
[8159,"MONSOREZ Michel","KK"]
[4730,"LAGAGE Roger","KK"]
[2568,"CORNELISSEN Jacky","KK"]
[1054,"DEMOS Georges","KK"]
[4708,"DENNEULIN Frédéric","KK"]
[8324,"VANNUXEM Jérôme","KK"]
[7129,"ROELANTS Frédéric","KK"]
[5809,"BITALIS Richard","KK"]
[7457,"COECK Bjorn","KK"]
[7913,"STOPIN Gilles","KK"]
[1150,"BRANTS Ronny","KK"]
[1053,"DESPREZ Jean-Pierre","KK"]
[1059,"CARDON Eddy","KK"]
[3508,"BUYLE Stany","KK"]
[9530,"DESMET Alain","KK"]
[8696,"DORARD Steve","KK"]
[4589,"GODEFROIDT Frédéric","KK"]
[9968,"BRUYERE Michel","KK"]
[7401,"CHRISTIANI Dave","KK"]
[9767,"VANHULLE CHRIS","KK"]
[9779,"FLORENT JULIEN","KK"]
[1116,"DE BECKER JEAN-JACQUES","KK"]
[8735,"VAN DEN BUVERIE Eric","KK"]
[7468,"DE WEIRDT Jean-Pierre","KK"]
[4673,"LAGAT Michel","KK"]
[9742,"CARDON Steve","KK"]
[]
[2061,"MERTENS Eddy","KOH"]
[4290,"GILLADE Luc","KOH"]
[4305,"DE HERTOG Ives","KOH"]
[4354,"CAPIAU Lucien","KOH"]
[4356,"DE BOU Pol","KOH"]
[4361,"MANGELINCKX Nico","KOH"]
[4389,"VAN KERCKHOVE Andre","KOH"]
[8093,"MATTHYS Karolien","KOH"]
[8662,"VAN DER LINDEN Eric","KOH"]
[8871,"VANDENHENDE John","KOH"]
[9064,"GERSOULLE Marc","KOH"]
[9055,"DE HERTOG Gert-Jan","KOH"]
[4378,"DE RUYVER Stefaan ","KOH"]
[4387,"TEMMERMAN Walter","KOH"]
[9283,"BRENDERS Thierry","KOH"]
[4348,"VAN MUYLEM Norbert","KOH"]
[9518,"DE MECHELEER Michel","KOH"]
[4390,"VAN MALDER Dirk","KOH"]
[8066,"VANDERHAUWAERT Christian","KOH"]
[4780,"LIBRECHT Geert ","KOH"]
[7682,"MATHIEU Ivan","KOH"]
[4385,"MERTENS Marc","KOH"]
[1414,"VAN DIJCK Philip","KOH"]
[]
[null," "]
[]
[4617,"JANSSENS Marcel","KOTM"]
[9129,"DE GRAAF Jackie","KOTM"]
[9054,"HOFMAN Hugo","KBCAW"]
[9238,"SIMONS Rudi","K&V"]
[9777,"VAN ACKER Luc","KOTM"]
[9780,"DROSSAERT Maurice","KOTM"]
[8667,"Rogier Philppe","KOTM"]
[]
[]
[4274,"VANHESTE Jean-Pierre"," OBA"]
[4158,"BAUWENS Freddy","OBA"]
[4147,"D'HONT Steven","K.GHOK"]
[9253,"LINTHOUT Freddy","OBA"]
[1554,"VERLAECKE  Rudy","OBA"]
[4207,"VELGHE Stefaan","OBA"]
[4246,"BOLLE Jean-Marie","OBA"]
[4249,"BRISSINCK Danny","OBA"]
[4252,"DEJONGHE Freddy","OBA"]
[4254,"EVERAERT Luc","OBA"]
[4256,"HELSMOORTEL Rik","OBA"]
[4262,"SANCTORUM Daniel","OBA"]
[4263,"SCHLAPA Harald","OBA"]
[4264,"STEEN Gilbert","OBA"]
[4265,"STEMGEE Hugo","OBA"]
[4269,"TRATSAERT Daniel","OBA"]
[4276,"VAN WESEMAEL Walter","OBA"]
[4277,"VANDENBROUCKE Joel","OBA"]
[4635,"DEVLIEGER Raoul","OBA"]
[5900,"PUYSTIENS Stephan","OBA"]
[6456,"PLOVIE Herbert","OBA"]
[7466,"ROBYN Willy","OBA"]
[7800,"VERSCHUERE Guy","OBA"]
[7802,"DOUCHAMPS Olivier","OBA"]
[8296,"MAES Jozef","OBA"]
[8917,"GREMAIN Gino","OBA"]
["4162B","CAPPELLE Eddy","OBA"]
[4280,"ZONNEKEIN Henri","OBA"]
[4065,"BAERT Rony","OBA"]
[9296,"BORREMANS  Edouard","OBA"]
[9414,"EUSSEN Gerardus","OBA"]
[9977,"GOEMAERE Yves","OBA"]
[8045,"GARRE Roger","OBA"]
[9514,"VANROOSE Matteo","OBA"]
[9969,"SPILLIERS Marc","OBA"]
[7681,"VAN DE VELDE Jozef","OBA"]
[9989,"VAN BOGAERT  Marc","OBA"]
[9759,"BRACKX Daniël","OBA"]
[4193,"DEVYNCK Benoit","OBA"]
[7468,"DEWEIRDT Jean-Pierre","KK"]
[6080,"ROELS Jan","OBA"]
[8885,"SPOORMANS Roger","OBA"]
[9993,"VAN DEN BERGEN Joêl","OBA"]
[7801,"EISCHEN Frédéric","OBA"]
[1376,"CEULEMANS Lodewijck","OBA"]
[2228,"VAN BENEDEN Alain","OBA"]
[4119,"GEERLANDT José","OBA"]
[4247,"BORNY Franky ","OBA"]
[2211,"DE TRENOYE Christian","OBA"]
[1209,"SOMERS Jan","OBA"]
[4268,"TOURLEMAIN Roger","OBA"]
["4301B","VAN GOETHEM Glenn","OBA"]
[]
[4122,"HAEGHEBAERT Eric","OS"]
[4133,"WERBROUCK Luc","OS"]
[7010,"VERMEULEN Johan","OS"]
[7287,"SOENENS Joël","OS"]
[8046,"LAMMENS Wilfried","OS"]
[8668,"VANDEKEERE Bert","OS"]
[8883,"VAN PRAET Bart","OS"]
[6074,"MAES Hendrik","OS"]
[1102,"CALLIAUW Ludo","OS"]
["7465B","COUSSEMENT Wim","OS"]
[9768,"VAN ROOSE Nico","OS"]
[9784,"DENYS Jerry","OS","NS"]
[]
[9534,"VANHONACKER Dominique","POCKET"]
[9953,"WILMS Steve","POCKET"]
[9954,"PETRUS Kim","POCKET"]
[]
[4945,"BUYLE Hubert","QU"]
[4977,"VLERICK Dirk","QU"]
[6219,"RAEMDONCK Tommy","QU"]
[7530,"VLERICK Mathieu","QU"]
[8682,"TEMPELS André","QU"]
[9278,"BOONE Koen","QU"]
[4412,"VAN KERCKHOVE Freddy","QU"]
[9147,"BOCKLANDT Martin","QU"]
[1329,"COENEN Philip","KKBC"]
[4284,"DE BACKER Peter","QU"]
[9445,"DE PAEPE Dirk","QU"]
[9508,"HEYMAN David","QU"]
[9536,"BOONE Leo","QU"]
[4948,"DE BELEYR Gilbert","QU"]
[3439,"JORISSEN Jeffrey","QU"]
[4334,"VAN HAUTE Guido","QU"]
[9970,"VAN GOETHEM Wim","QU"]
[1204,"MERCKX Eddy","QU"]
[4910,"DE FLO Herman","QU"]
[4932,"VAN MOL William","QU"]
[4942,"BAETENS Marc","QU"]
[9427,"VANDENBERGHE  Glen","QU"]
[5747,"SAEY ETIENNE","QU"]
[4931,"VAN HOYLANDT ROGER","QU"]
[5733,"VAN BRUYSSEL RONY","QU"]
[9956,"KASIER Sven","QU"]
[7318,"CARDON Eric","QU"]
[4908,"DE BOECK René","QU"]
[4639,"DUPONT Franky","QU"]
[1193,"DE SCHEPPER PATRICK","QU"]
[9587,"VAN GOETHEM Eric","QU"]
[8639,"DE BOCK Dirk ","QU"]
[8590,"VAN DER SPIEGEL Marc","QU"]
[8582,"VAN NIEUWENHOVE Mario","QU"]
["??","ELSKENS Pierre","QU"]
[]
[]
[]
[4702,"BEGHIN Bernard","RT"]
[4709,"DESBONNEZ Philippe","RT"]
[4710,"EQUIPART Pierre","RT"]
[4715,"LAMPE Guy","RT"]
[4740,"BEGHIN Julien","RT"]
[6441,"BERRIER Jean-Pierre","RT"]
[9075,"FLORIN Marc","RT"]
[9076,"DELPANQUE Fabien","RT"]
[9272,"GUENEZ Christophe","RT"]
[9435,"VERCAMPST Rémy","RT"]
[8694,"VANDEMAELE  Paul-André","RT"]
[7693,"FAREZ Luc","RT"]
[9528,"DE SOUSA Joaquim","RT"]
[4714,"LAMOTE Francis","RT"]
[9077,"COUCKE Gabriel","RT"]
[7542,"DESTAILLEUR Patrick ","RT"]
[9971,"DUEZ Bernard","RT"]
[]
[4294,"MATTENS Roger","SMA"]
[4301,"VAN GOETHEM Glenn","SMA"]
[7048,"STILTEN Rik","SMA"]
[4297,"VAN DEN BOSSCHE Christian","SMA"]
[9416,"RIEMKENS Wilfried","SMA"]
[9415,"VERHOEYEN Eddy","SMA"]
[9417,"ROGIERS Marc","SMA"]
[6694,"VINCK Eddy ","SMA"]
[1170,"TEMMERMAN Dirk","SMA"]
[4974,"VAN DEN BROECK Harry","SMA"]
[9972,"VAN DE VONDEL Dirk","SMA"]
[4374,"VERHULST Jean-Paul","SMA"]
[1190,"CALLEBAUT Pascal","SMA"]
[9808,"VAN DEN BOSSCHE Cesar","SMA"]
[9776,"VAN DEN BERGHE Damiaan","SMA"]
[2338,"VAN DE CAN Thierry","SMA"]
[7297,"MESKENS Eduard","SMA"]
[9776,"VANDE CAN Florian","SMA"]
[8675,"LEDEGEN  Johan","SMA","NS"]
[8673,"SOETINCK Patrick ","SMA","NS"]
[]
[]
[4392,"BOELAERT Eddie","UN"]
[4399,"DIERKENS Antoine","UN"]
[4400,"LAMBOTTE Rik","UN"]
[4511,"DE PAUW Lucien","UN"]
[4514,"DUYTSCHAEVER Roger","UN"]
[4519,"MALFAIT Michel","UN"]
[4574,"HOFMAN Raf","UN"]
[4582,"VAN LIERDE Etienne","UN"]
[4583,"VAN SPEYBROECK Pierre","UN"]
[4965,"ROSSEL Bart","UN"]
[4966,"ROSSEL Francis","UN"]
[6930,"VERHELST Daniel","UN"]
[7303,"FRANCK Franky","ACG"]
[7471,"WIELEMANS Gustaaf","UN"]
[7808,"BAUWENS Filip","UN"]
[4531,"WULFRANCK Luc","UN"]
[8168,"VERWEE Julien","UN"]
[8660,"TEMMERMAN Eduard","UN"]
[9069,"SOMNEL Noël","UN"]
[9269,"GEIRNAERT Emile","UN"]
[4520,"MARTENS Johan","UN"]
[4581,"VAN HOOYDONK Guy","UN",null,null," "]
[4552,"LEMAN Willy","UN"]
[8891,"PLATTEAU Tiani","UN"]
[9293,"VAN HIJFTE Frans","UN"]
[4732,"NACHTERGAELE Geert","UN"]
[4518,"LEURIDON Jean-Pierre","UN"]
[4456,"DUPONT Jean-Claude","UN"]
[4407,"STEELS Dieter","UN"]
[8064,"CNOCKAERT Arnold","UN"]
[8888,"DE MEYER Erik","ACG"]
[4513,"DUYTSCHAEVER Peter","UN"]
[6433,"DE BACKER Luc","UN"]
[8148,"EVERAERT Santino","UN"]
[]
[null," "]
[1063,"BERTOLOTTI  BEATRICE","WM"]
[5486,"BROEDERS ADRIANUS","WM"]
[7551,"CLAESSENS WALTER","WM"]
[8939,"CORNIL PASCAL","WM"]
[1188,"DE CLEEN JOERI","WM"]
[1189,"DE CLEEN SYLVAIN","WM"]
[8077,"DE WOLF ALFONS","WM"]
[4666,"DECONINCK FRANKY","WM"]
[1195,"DELVAUX BENONI","WM"]
[2215,"FORTON FRANCIS","WM"]
[8026,"HOFMAN Glen","WM"]
[1004,"HOSTENS STEFAAN","WM"]
[5430,"MUYLAERT DIRK","WM"]
[1005,"PEETERS LEO","WM"]
[4405,"SCHIETTECATTE YVES","WM"]
[2192,"STERCKVAL MICHEL","WM"]
[1168,"VAN BAREL FERDINAND","WM"]
[5727,"VAN GOETHEM BENNY","WM"]
[4841,"VERPLANCKE Jean-Paul","WM"]
[4842,"WAUTERS TOM","WM"]
[2206,"WEEREMANS DIRK","WM"]
[8661,"HEYNDRICKX Vik","WM"]
[7521,"VERBERT Eddy","WM"]
[8254,"SOUMAGNE Pierre","WM"]
[6953,"DEWIT Anthony","WM"]
[6851,"ALLEMAN Marc","WM"]
[2292,"SLAGMOLEN FREDERIK","WM"]
[9775,"COLAERT René","WM"]
[9790,"DE MOL Eddy","WM"]
["NS4","DEWIT Freddy","WM"]
[9758,"WENSELAERS Frieda","WM"]
[6151,"VAN OVERSCHELDE Bonny","WM"]
[]
[]
[]
[4691,"D'HONDT Hervé","WOH"]
[4701,"WERBROUCK Donald","WOH"]
[6722,"GRYSON Dirk","WOH"]
[7314,"DEMAN Leon","WOH"]
[7315,"EVERAERDT Corneel","WOH"]
[8528,"VANACKER Jozef","WOH"]
[8687,"DESWARTE Willy","WOH"]
[8872,"BEIRNAERT Arthur","WOH"]
[8873,"DEVOS Claude","WOH"]
[8875,"DEBUSSCHERE Dries","WOH"]
[9074,"VANBIERVLIET Geert","WOH"]
[9270,"DESWARTE Franky","WOH"]
[9271,"VAN ACKER Frank","WOH"]
[5183,"BOEDTS Freddy","WOH"]
[7316,"RONDELE Freddy","K.GHOK"]
[5717,"ACX Dirk","WOH"]
[9856,"ALGOET Marc","WOH"]
[]
[4487,"VAN DE VOORDE Luc"]
[6577,"SCIACCA Emilio"]
[1040,"SERGEANT Etienne"]
[9519,"HUT Joop"]
[5798,"van Manen Bert"]
[]
[9975,"WILLEMS Peter"]
[7685,"Hanskens Stephaan"]
[1044,"Coppens Jimmy"]
[]
[9594,"VAN QUAETHEM Romain"]
[]
[4528,"VAN HANEGEM Nico"]
[8889,"DE PREST Alex"]
[9423,"DE GOQUE Guy"]
[1039,"WIEME Koenraad"]
[4550,"KESTELOOT Patrick"]
[1033,"DE CASTER Marc"]
[8426,"MOEYKENS Michel"]
[]
[8347,"BUYENS Pascal"]
[8886,"DELTENRE Pascal"]
[8887,"VANLANCKER Marc"]
[9264,"REYCHLER Hedwig","K&V"]
[9262,"CLAEYS Hubert"]
[9523,"DE LANGHE François"]
[]
[]
[]
[9962,"DE BRAEKELEIR Gilbert"]
[]
[]
[]
[]
[]
[]
[]
[9521,"VERMEULEN Louis"]